[Event "*** Titled Tuesday Blitz"]
[Site "Chess.com"]
[Date "2020.11.10"]
[Round "3"]
[White "Kristina_Kim"]
[Black "fabianvivasz"]
[Result "0-1"]
[WhiteElo "2181"]
[BlackElo "2354"]
[TimeControl "180+1"]
[EndTime "10:34:20 PST"]
[Termination "fabianvivasz won by checkmate"]

1. d4 {[%clk 0:03:00.9]} 1... Nf6 {[%clk 0:02:59.6]} 2. c4 {[%clk 0:03:01.1]}
2... g6 {[%clk 0:02:59.6]} 3. Nc3 {[%clk 0:03:01.2]} 3... d5 {[%clk 0:03:00]} 4.
cxd5 {[%clk 0:02:55.1]} 4... Nxd5 {[%clk 0:03:00.9]} 5. e4 {[%clk 0:02:54]} 5...
Nxc3 {[%clk 0:03:01.2]} 6. bxc3 {[%clk 0:02:54.9]} 6... Bg7 {[%clk 0:03:01.9]}
7. Nf3 {[%clk 0:02:39.2]} 7... c5 {[%clk 0:03:00.6]} 8. Rb1 {[%clk 0:02:19.9]}
8... O-O {[%clk 0:02:55.8]} 9. Be3 {[%clk 0:02:15.9]} 9... Qa5 {[%clk
0:02:32.4]} 10. Qd2 {[%clk 0:02:10.3]} 10... a6 {[%clk 0:01:47]} 11. Be2 {[%clk
0:02:04.9]} 11... Nc6 {[%clk 0:01:41]} 12. O-O {[%clk 0:01:28.2]} 12... cxd4
{[%clk 0:01:39.7]} 13. Nxd4 {[%clk 0:01:05.5]} 13... Rd8 {[%clk 0:01:37.7]} 14.
Nxc6 {[%clk 0:01:03.3]} 14... bxc6 {[%clk 0:01:38.6]} 15. Qc2 {[%clk 0:00:53.9]}
15... Qxc3 {[%clk 0:01:16.8]} 16. Qa4 {[%clk 0:00:45.3]} 16... Be6 {[%clk
0:00:47.6]} 17. Rfc1 {[%clk 0:00:41.3]} 17... Qe5 {[%clk 0:00:46.6]} 18. Rc5
{[%clk 0:00:22.5]} 18... Qd6 {[%clk 0:00:43.1]} 19. Rxc6 {[%clk 0:00:20.6]}
19... Qd7 {[%clk 0:00:43.5]} 20. Rbc1 {[%clk 0:00:14.3]} 20... a5 {[%clk
0:00:39]} 21. h3 {[%clk 0:00:13.1]} 21... Qe8 {[%clk 0:00:35]} 22. Qc2 {[%clk
0:00:12.5]} 22... Bd7 {[%clk 0:00:33.4]} 23. Rc7 {[%clk 0:00:11.3]} 23... Ba4
{[%clk 0:00:31.7]} 24. Qc5 {[%clk 0:00:06.4]} 24... Bf8 {[%clk 0:00:29.2]} 25.
Qb6 {[%clk 0:00:04.7]} 25... Rdb8 {[%clk 0:00:26.5]} 26. Qc5 {[%clk 0:00:05.1]}
26... Qd8 {[%clk 0:00:19.9]} 27. Bf3 {[%clk 0:00:04.7]} 27... Ra6 {[%clk
0:00:14.3]} 28. Qc4 {[%clk 0:00:03.9]} 28... Bb5 {[%clk 0:00:13.5]} 29. Qc3
{[%clk 0:00:03.5]} 29... Bg7 {[%clk 0:00:12.3]} 30. Qd2 {[%clk 0:00:04.1]} 30...
Rd6 {[%clk 0:00:12.3]} 31. Qc2 {[%clk 0:00:04]} 31... Bd3 {[%clk 0:00:08.9]} 32.
Qc3 {[%clk 0:00:03.6]} 32... Bxc3 {[%clk 0:00:08.6]} 33. R1xc3 {[%clk
0:00:03.5]} 33... Rdb6 {[%clk 0:00:07.7]} 34. Bxb6 {[%clk 0:00:03.1]} 34... Qd6
{[%clk 0:00:05.5]} 35. Rc8+ {[%clk 0:00:03.1]} 35... Rxc8 {[%clk 0:00:05.2]} 36.
Rxc8+ {[%clk 0:00:04]} 36... Kg7 {[%clk 0:00:05.9]} 37. Be3 {[%clk 0:00:04.7]}
37... f6 {[%clk 0:00:06]} 38. Rc1 {[%clk 0:00:03.7]} 38... Qe5 {[%clk
0:00:05.7]} 39. g3 {[%clk 0:00:03.6]} 39... Bxe4 {[%clk 0:00:05.7]} 40. Be2
{[%clk 0:00:03.7]} 40... Bd5 {[%clk 0:00:05.6]} 41. Bc4 {[%clk 0:00:03.3]} 41...
Qc7 {[%clk 0:00:04.5]} 42. Bxd5 {[%clk 0:00:01.5]} 42... Qe5 {[%clk 0:00:04.9]}
43. Bb3 {[%clk 0:00:01.9]} 43... Qe4 {[%clk 0:00:04.6]} 44. Bc2 {[%clk
0:00:02.2]} 44... Qc4 {[%clk 0:00:04.6]} 45. Bd1 {[%clk 0:00:02.6]} 45... Qd3
{[%clk 0:00:04.8]} 46. Bb3 {[%clk 0:00:02.9]} 46... Qe2 {[%clk 0:00:03.1]} 47.
Bc4 {[%clk 0:00:03.8]} 47... Qb2 {[%clk 0:00:02.2]} 48. Kg2 {[%clk 0:00:04.7]}
48... Qa3 {[%clk 0:00:02.4]} 49. Bb3 {[%clk 0:00:04.3]} 49... a4 {[%clk
0:00:03]} 50. Be6 {[%clk 0:00:04.6]} 50... Qb4 {[%clk 0:00:03.2]} 51. Bc4 {[%clk
0:00:05]} 51... Qd6 {[%clk 0:00:03.7]} 52. Kg1 {[%clk 0:00:04.5]} 52... h5
{[%clk 0:00:04.2]} 53. h4 {[%clk 0:00:04.9]} 53... a3 {[%clk 0:00:04.6]} 54. Rc3
{[%clk 0:00:04.9]} 54... Qb4 {[%clk 0:00:04.5]} 55. Rc1 {[%clk 0:00:04.7]} 55...
Qb2 {[%clk 0:00:04.7]} 56. Bb3 {[%clk 0:00:05.6]} 56... g5 {[%clk 0:00:04.8]}
57. Rc2 {[%clk 0:00:05.7]} 57... Qb1+ {[%clk 0:00:04.7]} 58. Kg2 {[%clk
0:00:06]} 58... Qb2 {[%clk 0:00:04.8]} 59. Rc7 {[%clk 0:00:06.5]} 59... Qe5
{[%clk 0:00:04.4]} 60. Rc5 {[%clk 0:00:05.5]} 60... Qe4+ {[%clk 0:00:04.4]} 61.
Kh2 {[%clk 0:00:05.3]} 61... gxh4 {[%clk 0:00:05]} 62. gxh4 {[%clk 0:00:05.5]}
62... Qxh4+ {[%clk 0:00:05.9]} 63. Kg2 {[%clk 0:00:05.8]} 63... Qg4+ {[%clk
0:00:06.4]} 64. Kf1 {[%clk 0:00:05.7]} 64... h4 {[%clk 0:00:07.3]} 65. Rc4
{[%clk 0:00:05.3]} 65... Qh3+ {[%clk 0:00:07]} 66. Kg1 {[%clk 0:00:04]} 66... e5
{[%clk 0:00:07.3]} 67. Rc7+ {[%clk 0:00:03.4]} 67... Kg6 {[%clk 0:00:07.4]} 68.
Bc2+ {[%clk 0:00:03.6]} 68... f5 {[%clk 0:00:07.7]} 69. Rc6+ {[%clk 0:00:03.5]}
69... Kf7 {[%clk 0:00:07.8]} 70. Bb3+ {[%clk 0:00:03.3]} 70... Ke7 {[%clk
0:00:07.9]} 71. Bg5+ {[%clk 0:00:03.5]} 71... Kd7 {[%clk 0:00:08.2]} 72. Re6
{[%clk 0:00:02.5]} 72... Qg4+ {[%clk 0:00:08.5]} 73. Kh2 {[%clk 0:00:02.6]}
73... Qxg5 {[%clk 0:00:09]} 74. Ra6 {[%clk 0:00:02]} 74... Qf4+ {[%clk
0:00:09.4]} 75. Kg2 {[%clk 0:00:01.5]} 75... Qg4+ {[%clk 0:00:09.8]} 76. Kf1
{[%clk 0:00:01.6]} 76... h3 {[%clk 0:00:10.3]} 77. Ra7+ {[%clk 0:00:01.2]} 77...
Kc6 {[%clk 0:00:09.5]} 78. Rh7 {[%clk 0:00:02.1]} 78... Qf3 {[%clk 0:00:08.4]}
79. Rh6+ {[%clk 0:00:02.3]} 79... Kc5 {[%clk 0:00:08.4]} 80. Rh4 {[%clk
0:00:01.6]} 80... Qg2+ {[%clk 0:00:08.5]} 81. Ke2 {[%clk 0:00:01.7]} 81... h2
{[%clk 0:00:09.4]} 82. Rc4+ {[%clk 0:00:01.4]} 82... Kb5 {[%clk 0:00:10]} 83.
Rh4 {[%clk 0:00:01.9]} 83... h1=Q {[%clk 0:00:09.7]} 84. Bc4+ {[%clk 0:00:02.8]}
84... Kc5 {[%clk 0:00:09.4]} 85. Bd5 {[%clk 0:00:03.7]} 85... Qhh2 {[%clk
0:00:08.5]} 86. Rc4+ {[%clk 0:00:04.6]} 86... Kxd5 {[%clk 0:00:08]} 87. Ra4
{[%clk 0:00:03.7]} 87... Qe4+ {[%clk 0:00:06.9]} 88. Kf1 {[%clk 0:00:03.4]}
88... Qxa4 {[%clk 0:00:06.7]} 89. Ke2 {[%clk 0:00:02.7]} 89... Qc2+ {[%clk
0:00:07.1]} 90. Kf1 {[%clk 0:00:03.6]} 90... Qhxf2# {[%clk 0:00:07.6]} 0-1

[Event "*** Titled Tuesday Blitz"]
[Site "Chess.com"]
[Date "2020.11.10"]
[Round "3"]
[White "DraG0s3L"]
[Black "yobdc"]
[Result "1/2-1/2"]
[WhiteElo "2584"]
[BlackElo "2400"]
[TimeControl "180+1"]
[EndTime "10:34:26 PST"]
[Termination "Game drawn - insufficient material"]

1. d4 {[%clk 0:03:00.9]} 1... Nf6 {[%clk 0:02:59.6]} 2. c4 {[%clk 0:02:50.8]}
2... e6 {[%clk 0:02:59.8]} 3. Nc3 {[%clk 0:02:51.1]} 3... Bb4 {[%clk 0:02:59.1]}
4. Qc2 {[%clk 0:02:51.1]} 4... d5 {[%clk 0:02:58.9]} 5. cxd5 {[%clk 0:02:50.8]}
5... Qxd5 {[%clk 0:02:59.1]} 6. Nf3 {[%clk 0:02:49.4]} 6... Qf5 {[%clk
0:02:58.2]} 7. Qxf5 {[%clk 0:02:48.6]} 7... exf5 {[%clk 0:02:59.1]} 8. Bd2
{[%clk 0:02:47.3]} 8... c6 {[%clk 0:02:58.8]} 9. e3 {[%clk 0:02:47.5]} 9... Be6
{[%clk 0:02:58.5]} 10. Bd3 {[%clk 0:02:47.5]} 10... Nbd7 {[%clk 0:02:57.7]} 11.
a3 {[%clk 0:02:46.1]} 11... Bd6 {[%clk 0:02:47.4]} 12. O-O {[%clk 0:02:45]}
12... O-O {[%clk 0:02:46.7]} 13. Rac1 {[%clk 0:02:43.8]} 13... g6 {[%clk
0:02:45.9]} 14. Na4 {[%clk 0:02:43.5]} 14... Nd5 {[%clk 0:02:45.2]} 15. b4
{[%clk 0:02:40.6]} 15... Rfc8 {[%clk 0:02:41.5]} 16. Nc5 {[%clk 0:02:33.8]}
16... Nxc5 {[%clk 0:02:35.2]} 17. bxc5 {[%clk 0:02:25.6]} 17... Be7 {[%clk
0:02:31.3]} 18. Ne5 {[%clk 0:02:24.3]} 18... b5 {[%clk 0:02:18.8]} 19. cxb6
{[%clk 0:02:10]} 19... axb6 {[%clk 0:02:16.9]} 20. Nxc6 {[%clk 0:02:07.1]} 20...
Bxa3 {[%clk 0:02:16.3]} 21. Rc2 {[%clk 0:02:04.3]} 21... Bd6 {[%clk 0:02:10]}
22. Rfc1 {[%clk 0:02:01.5]} 22... Kg7 {[%clk 0:02:09.7]} 23. f3 {[%clk
0:01:58.9]} 23... Ra3 {[%clk 0:02:07.5]} 24. Bf1 {[%clk 0:01:34.4]} 24... Nxe3
{[%clk 0:02:05.6]} 25. Bxe3 {[%clk 0:01:34.6]} 25... Rxe3 {[%clk 0:02:05.4]} 26.
Na7 {[%clk 0:01:28]} 26... Rxc2 {[%clk 0:01:59.9]} 27. Rxc2 {[%clk 0:01:28.9]}
27... Re1 {[%clk 0:01:46.9]} 28. Kf2 {[%clk 0:01:28.5]} 28... Rd1 {[%clk
0:01:46.9]} 29. Nb5 {[%clk 0:01:27.3]} 29... Bxh2 {[%clk 0:01:43.7]} 30. g3
{[%clk 0:01:27.2]} 30... f4 {[%clk 0:01:43.2]} 31. g4 {[%clk 0:01:27.8]} 31...
Bg3+ {[%clk 0:01:42.9]} 32. Kg2 {[%clk 0:01:27.5]} 32... Bb3 {[%clk 0:01:32.7]}
33. Rb2 {[%clk 0:01:25.4]} 33... Bd5 {[%clk 0:01:30]} 34. Be2 {[%clk 0:01:20.8]}
34... Rc1 {[%clk 0:01:29.5]} 35. Nd6 {[%clk 0:01:14.1]} 35... Rc6 {[%clk
0:01:13]} 36. Ne4 {[%clk 0:01:11.6]} 36... Be1 {[%clk 0:00:57.4]} 37. Bb5 {[%clk
0:01:08.6]} 37... Re6 {[%clk 0:00:55.2]} 38. Bd3 {[%clk 0:01:08.8]} 38... Ba5
{[%clk 0:00:54.3]} 39. Rb5 {[%clk 0:01:07.1]} 39... Bc6 {[%clk 0:00:53.7]} 40.
Rb2 {[%clk 0:00:44.3]} 40... f5 {[%clk 0:00:53.1]} 41. gxf5 {[%clk 0:00:40.9]}
41... gxf5 {[%clk 0:00:54]} 42. Ng5 {[%clk 0:00:41.6]} 42... Re3 {[%clk
0:00:53.7]} 43. Bc4 {[%clk 0:00:40.5]} 43... Kf6 {[%clk 0:00:53.3]} 44. d5
{[%clk 0:00:35.7]} 44... Bxd5 {[%clk 0:00:50.2]} 45. Nxh7+ {[%clk 0:00:35.7]}
45... Kg6 {[%clk 0:00:48.7]} 46. Bxd5 {[%clk 0:00:35.6]} 46... Kxh7 {[%clk
0:00:48.8]} 47. Rc2 {[%clk 0:00:33.9]} 47... Kg6 {[%clk 0:00:49]} 48. Rc6+
{[%clk 0:00:33.2]} 48... Kg5 {[%clk 0:00:49.4]} 49. Kh3 {[%clk 0:00:33]} 49...
Re1 {[%clk 0:00:49.2]} 50. Bf7 {[%clk 0:00:30.8]} 50... Rh1+ {[%clk 0:00:48.6]}
51. Kg2 {[%clk 0:00:30.9]} 51... Rh6 {[%clk 0:00:47.8]} 52. Rc8 {[%clk
0:00:29.5]} 52... Kf6 {[%clk 0:00:47.1]} 53. Bd5 {[%clk 0:00:28]} 53... Ke5
{[%clk 0:00:47.1]} 54. Bb7 {[%clk 0:00:28]} 54... Kd4 {[%clk 0:00:47.2]} 55. Ba6
{[%clk 0:00:27.4]} 55... Rg6+ {[%clk 0:00:47.3]} 56. Kf2 {[%clk 0:00:27.5]}
56... Rh6 {[%clk 0:00:46.7]} 57. Rc4+ {[%clk 0:00:27.7]} 57... Kd5 {[%clk
0:00:46.6]} 58. Rxf4 {[%clk 0:00:27.8]} 58... Ke5 {[%clk 0:00:43.8]} 59. Rc4
{[%clk 0:00:27.4]} 59... Rh2+ {[%clk 0:00:43.7]} 60. Ke3 {[%clk 0:00:27.5]}
60... Rb2 {[%clk 0:00:41.2]} 61. Rc8 {[%clk 0:00:26.9]} 61... Bd2+ {[%clk
0:00:40.1]} 62. Kd3 {[%clk 0:00:27.1]} 62... Bf4 {[%clk 0:00:39.7]} 63. Re8+
{[%clk 0:00:26.9]} 63... Kd6 {[%clk 0:00:39.6]} 64. Bc4 {[%clk 0:00:26.5]} 64...
Rf2 {[%clk 0:00:38]} 65. Rd8+ {[%clk 0:00:24.1]} 65... Kc6 {[%clk 0:00:37]} 66.
Bd5+ {[%clk 0:00:23]} 66... Kc5 {[%clk 0:00:36.9]} 67. Bb7 {[%clk 0:00:23.2]}
67... Bd6 {[%clk 0:00:34.8]} 68. Rc8+ {[%clk 0:00:20.7]} 68... Kb4 {[%clk
0:00:34]} 69. Kd4 {[%clk 0:00:20.7]} 69... f4 {[%clk 0:00:34]} 70. Ke4 {[%clk
0:00:20.4]} 70... Bc5 {[%clk 0:00:32.8]} 71. Kxf4 {[%clk 0:00:19.8]} 71... b5
{[%clk 0:00:32.9]} 72. Ke4 {[%clk 0:00:20]} 72... Kc4 {[%clk 0:00:32.8]} 73.
Bd5+ {[%clk 0:00:20.1]} 73... Kb4 {[%clk 0:00:32.6]} 74. f4 {[%clk 0:00:20.6]}
74... Re2+ {[%clk 0:00:32.5]} 75. Kf3 {[%clk 0:00:20.7]} 75... Re1 {[%clk
0:00:32.5]} 76. f5 {[%clk 0:00:20.8]} 76... Rf1+ {[%clk 0:00:32.9]} 77. Ke4
{[%clk 0:00:21.1]} 77... Bd6 {[%clk 0:00:32.7]} 78. Be6 {[%clk 0:00:20.4]} 78...
Rf4+ {[%clk 0:00:32.3]} 79. Kd5 {[%clk 0:00:20.6]} 79... Be7 {[%clk 0:00:31.9]}
80. Rc7 {[%clk 0:00:20.4]} 80... Bf6 {[%clk 0:00:32]} 81. Rf7 {[%clk 0:00:20.1]}
81... Ba1 {[%clk 0:00:31.1]} 82. Rb7 {[%clk 0:00:20.2]} 82... Rd4+ {[%clk
0:00:30.6]} 83. Kc6 {[%clk 0:00:20.7]} 83... Rf4 {[%clk 0:00:30.8]} 84. Rxb5+
{[%clk 0:00:20.6]} 84... Kc3 {[%clk 0:00:30.2]} 85. Rb3+ {[%clk 0:00:20.4]}
85... Kd4 {[%clk 0:00:29.6]} 86. Rb4+ {[%clk 0:00:20.5]} 86... Ke5 {[%clk
0:00:29.6]} 87. Rb8 {[%clk 0:00:19.8]} 87... Rf2 {[%clk 0:00:28]} 88. Kd7 {[%clk
0:00:19]} 88... Kf6 {[%clk 0:00:28.1]} 89. Rf8+ {[%clk 0:00:18.6]} 89... Kg7
{[%clk 0:00:28]} 90. Rg8+ {[%clk 0:00:18.8]} 90... Kf6 {[%clk 0:00:27.7]} 91.
Rg6+ {[%clk 0:00:18.5]} 91... Ke5 {[%clk 0:00:28]} 92. Ke7 {[%clk 0:00:18.6]}
92... Bb2 {[%clk 0:00:27.7]} 93. Rg1 {[%clk 0:00:16.6]} 93... Ba3+ {[%clk
0:00:27.6]} 94. Kf7 {[%clk 0:00:17]} 94... Rf4 {[%clk 0:00:26.4]} 95. Re1+
{[%clk 0:00:17]} 95... Kd6 {[%clk 0:00:26.4]} 96. Rd1+ {[%clk 0:00:15.2]} 96...
Ke5 {[%clk 0:00:26.5]} 97. Rd5+ {[%clk 0:00:15.5]} 97... Ke4 {[%clk 0:00:26.5]}
98. Rb5 {[%clk 0:00:15.7]} 98... Rf2 {[%clk 0:00:26]} 99. f6 {[%clk 0:00:15.6]}
99... Bb2 {[%clk 0:00:26.3]} 100. Bd5+ {[%clk 0:00:11.9]} 100... Ke5 {[%clk
0:00:23.3]} 101. Bf3+ {[%clk 0:00:09.1]} 101... Kd6 {[%clk 0:00:22.8]} 102. Rb6+
{[%clk 0:00:08.6]} 102... Kc5 {[%clk 0:00:22]} 103. Rxb2 {[%clk 0:00:08.3]}
103... Rxb2 {[%clk 0:00:20.2]} 104. Kg8 {[%clk 0:00:09]} 104... Rf2 {[%clk
0:00:20.2]} 105. f7 {[%clk 0:00:08.8]} 105... Rxf3 {[%clk 0:00:19.7]} 106. f8=Q+
{[%clk 0:00:09.3]} 106... Rxf8+ {[%clk 0:00:19.6]} 107. Kxf8 {[%clk 0:00:10.2]}
1/2-1/2

[Event "*** Titled Tuesday Blitz"]
[Site "Chess.com"]
[Date "2020.11.10"]
[Round "4"]
[White "orestn"]
[Black "Kopytkin"]
[Result "0-1"]
[WhiteElo "2249"]
[BlackElo "2441"]
[TimeControl "180+1"]
[EndTime "10:35:43 PST"]
[Termination "Kopytkin won by resignation"]

1. e4 {[%clk 0:03:00.9]} 1... Nf6 {[%clk 0:03:00.1]} 2. e5 {[%clk 0:03:00.1]}
2... Nd5 {[%clk 0:03:00.3]} 3. d4 {[%clk 0:03:00.9]} 3... d6 {[%clk 0:03:00.6]}
4. c4 {[%clk 0:03:01.8]} 4... Nb6 {[%clk 0:03:00.7]} 5. f4 {[%clk 0:03:02.7]}
5... dxe5 {[%clk 0:03:00.7]} 6. fxe5 {[%clk 0:03:03]} 6... c5 {[%clk 0:02:58.6]}
7. d5 {[%clk 0:02:59]} 7... e6 {[%clk 0:02:58.9]} 8. Nc3 {[%clk 0:02:55.8]} 8...
exd5 {[%clk 0:02:59.2]} 9. cxd5 {[%clk 0:02:55.4]} 9... c4 {[%clk 0:02:59.6]}
10. Bxc4 {[%clk 0:02:54]} 10... Qh4+ {[%clk 0:02:56.7]} 0-1

[Event "*** Titled Tuesday Blitz"]
[Site "Chess.com"]
[Date "2020.11.10"]
[Round "4"]
[White "salomez"]
[Black "IMprovidence"]
[Result "1-0"]
[WhiteElo "2173"]
[BlackElo "2384"]
[TimeControl "180+1"]
[EndTime "10:38:13 PST"]
[Termination "salomez won by resignation"]

1. e4 {[%clk 0:03:00.9]} 1... c6 {[%clk 0:02:57.3]} 2. d4 {[%clk 0:02:59.4]}
2... d5 {[%clk 0:02:56.9]} 3. e5 {[%clk 0:02:59.1]} 3... c5 {[%clk 0:02:56.6]}
4. dxc5 {[%clk 0:02:56.5]} 4... e6 {[%clk 0:02:56.6]} 5. a3 {[%clk 0:02:55.8]}
5... Bxc5 {[%clk 0:02:55.1]} 6. b4 {[%clk 0:02:54.8]} 6... Bb6 {[%clk
0:02:47.9]} 7. Bb2 {[%clk 0:02:52]} 7... Ne7 {[%clk 0:02:45.1]} 8. Qg4 {[%clk
0:02:49.4]} 8... Kf8 {[%clk 0:02:38.1]} 9. Bd3 {[%clk 0:02:48.8]} 9... Nbc6
{[%clk 0:02:31.5]} 10. Nf3 {[%clk 0:02:47.5]} 10... a5 {[%clk 0:02:30.8]} 11. b5
{[%clk 0:02:45.1]} 11... Na7 {[%clk 0:02:30.8]} 12. a4 {[%clk 0:02:42.7]} 12...
Bc5 {[%clk 0:02:28.2]} 13. Nbd2 {[%clk 0:02:41.6]} 13... Bd7 {[%clk 0:02:25.5]}
14. O-O {[%clk 0:02:41.2]} 14... Nac8 {[%clk 0:02:22.9]} 15. Nb3 {[%clk
0:02:41.2]} 15... Ba7 {[%clk 0:02:18]} 16. Ba3 {[%clk 0:02:41.3]} 16... Nb6
{[%clk 0:02:12.6]} 17. Nxa5 {[%clk 0:02:36.1]} 17... Bc8 {[%clk 0:02:04.7]} 18.
Nb3 {[%clk 0:02:34.6]} 18... Bd7 {[%clk 0:02:03.9]} 19. a5 {[%clk 0:02:33.9]}
19... Nc4 {[%clk 0:02:01.9]} 20. Bxc4 {[%clk 0:02:32.8]} 20... dxc4 {[%clk
0:02:02.8]} 21. Qxc4 {[%clk 0:02:31.4]} 21... Rc8 {[%clk 0:02:01]} 22. Qd3
{[%clk 0:02:23.7]} 22... Qe8 {[%clk 0:01:58.9]} 23. c4 {[%clk 0:02:19.5]} 23...
Bb8 {[%clk 0:01:57.7]} 24. Rfd1 {[%clk 0:02:16.3]} 24... Rd8 {[%clk 0:01:57.6]}
25. Nc5 {[%clk 0:02:12.6]} 25... Kg8 {[%clk 0:01:52.5]} 26. Nxd7 {[%clk
0:02:08.4]} 1-0

[Event "*** Titled Tuesday Blitz"]
[Site "Chess.com"]
[Date "2020.11.10"]
[Round "4"]
[White "FMKonstantin_Twitch"]
[Black "lilleper1"]
[Result "0-1"]
[WhiteElo "2549"]
[BlackElo "2831"]
[TimeControl "180+1"]
[EndTime "10:38:24 PST"]
[Termination "lilleper1 won by resignation"]

1. e4 {[%clk 0:03:00.9]} 1... c5 {[%clk 0:02:59.6]} 2. Nf3 {[%clk 0:02:56.3]}
2... e6 {[%clk 0:02:59.9]} 3. d4 {[%clk 0:02:56.2]} 3... cxd4 {[%clk 0:03:00.8]}
4. Nxd4 {[%clk 0:02:56.9]} 4... Nc6 {[%clk 0:03:01.1]} 5. Nc3 {[%clk 0:02:56.7]}
5... Qc7 {[%clk 0:03:01.6]} 6. Be3 {[%clk 0:02:56]} 6... a6 {[%clk 0:03:01.3]}
7. Qf3 {[%clk 0:02:55.5]} 7... Nf6 {[%clk 0:03:00.2]} 8. O-O-O {[%clk
0:02:54.9]} 8... Ne5 {[%clk 0:02:59.7]} 9. Qg3 {[%clk 0:02:52.7]} 9... h5 {[%clk
0:02:59.6]} 10. f4 {[%clk 0:02:48.7]} 10... Neg4 {[%clk 0:02:59.3]} 11. e5
{[%clk 0:02:48.6]} 11... Nxe3 {[%clk 0:02:51.1]} 12. Qxe3 {[%clk 0:02:49.5]}
12... Ng4 {[%clk 0:02:49.9]} 13. Qf3 {[%clk 0:02:48.8]} 13... d6 {[%clk
0:02:34.2]} 14. exd6 {[%clk 0:02:42.6]} 14... Bxd6 {[%clk 0:02:33.6]} 15. g3
{[%clk 0:02:43]} 15... O-O {[%clk 0:02:24.3]} 16. Kb1 {[%clk 0:02:38.8]} 16...
Bd7 {[%clk 0:02:18.8]} 17. Bg2 {[%clk 0:02:36.4]} 17... Rac8 {[%clk 0:02:05.7]}
18. Ne4 {[%clk 0:02:32]} 18... Be7 {[%clk 0:01:58.9]} 19. h3 {[%clk 0:02:23.3]}
19... Nf6 {[%clk 0:01:58.7]} 20. Nxf6+ {[%clk 0:02:23]} 20... Bxf6 {[%clk
0:01:59.6]} 21. c3 {[%clk 0:02:23.6]} 21... b5 {[%clk 0:01:52]} 22. Qg4 {[%clk
0:01:46.2]} 22... hxg4 {[%clk 0:01:50.4]} 0-1

[Event "*** Titled Tuesday Blitz"]
[Site "Chess.com"]
[Date "2020.11.10"]
[Round "4"]
[White "Sven_Tica"]
[Black "Brave_spirit12"]
[Result "1-0"]
[WhiteElo "2696"]
[BlackElo "2495"]
[TimeControl "180+1"]
[EndTime "10:38:30 PST"]
[Termination "Sven_Tica won by resignation"]

1. d4 {[%clk 0:03:00.9]} 1... Nf6 {[%clk 0:02:52.3]} 2. c4 {[%clk 0:03:00.8]}
2... c5 {[%clk 0:02:52]} 3. d5 {[%clk 0:03:00.9]} 3... b5 {[%clk 0:02:51.9]} 4.
cxb5 {[%clk 0:03:01.8]} 4... a6 {[%clk 0:02:51.8]} 5. e3 {[%clk 0:03:02.5]} 5...
axb5 {[%clk 0:02:50.9]} 6. Bxb5 {[%clk 0:03:03.4]} 6... Ba6 {[%clk 0:02:50.9]}
7. Nc3 {[%clk 0:03:00]} 7... g6 {[%clk 0:02:46.9]} 8. Nf3 {[%clk 0:02:58.2]}
8... Bg7 {[%clk 0:02:44.2]} 9. O-O {[%clk 0:02:58]} 9... O-O {[%clk 0:02:43.5]}
10. Re1 {[%clk 0:02:58.4]} 10... d6 {[%clk 0:02:39.2]} 11. e4 {[%clk 0:02:58.1]}
11... Bxb5 {[%clk 0:02:32.2]} 12. Nxb5 {[%clk 0:02:57.8]} 12... Na6 {[%clk
0:02:31]} 13. Bd2 {[%clk 0:02:47.7]} 13... Nd7 {[%clk 0:02:26.1]} 14. Bc3 {[%clk
0:02:45.1]} 14... f6 {[%clk 0:02:18.4]} 15. Nd2 {[%clk 0:02:32.7]} 15... Qb6
{[%clk 0:02:10.2]} 16. a4 {[%clk 0:02:30]} 16... Ne5 {[%clk 0:02:04.8]} 17. f4
{[%clk 0:02:27.8]} 17... Nd3 {[%clk 0:02:02.3]} 18. Nc4 {[%clk 0:02:27.6]} 18...
Nxb2 {[%clk 0:01:31.9]} 19. Nxb6 {[%clk 0:02:17.5]} 19... Nxd1 {[%clk
0:01:09.4]} 20. Rexd1 {[%clk 0:02:17.4]} 20... Rab8 {[%clk 0:01:08.9]} 21. Nd7
{[%clk 0:02:16.8]} 1-0

[Event "*** Titled Tuesday Blitz"]
[Site "Chess.com"]
[Date "2020.11.10"]
[Round "4"]
[White "picturesquecheck"]
[Black "Omk124"]
[Result "0-1"]
[WhiteElo "2110"]
[BlackElo "2395"]
[TimeControl "180+1"]
[EndTime "10:38:30 PST"]
[Termination "Omk124 won by resignation"]

1. e4 {[%clk 0:03:00.9]} 1... g6 {[%clk 0:02:05.9]} 2. d4 {[%clk 0:02:59.3]}
2... Bg7 {[%clk 0:02:04.8]} 3. Nf3 {[%clk 0:02:58.6]} 3... d6 {[%clk 0:02:00.9]}
4. Nc3 {[%clk 0:02:57.7]} 4... c6 {[%clk 0:02:01.3]} 5. a4 {[%clk 0:02:55]} 5...
Nf6 {[%clk 0:02:01]} 6. Bd3 {[%clk 0:02:51.9]} 6... O-O {[%clk 0:02:01.3]} 7.
O-O {[%clk 0:02:51.9]} 7... Nbd7 {[%clk 0:02:00.8]} 8. Re1 {[%clk 0:02:51.2]}
8... e5 {[%clk 0:02:01.3]} 9. h3 {[%clk 0:02:50.1]} 9... Re8 {[%clk 0:02:00.3]}
10. Be3 {[%clk 0:02:46.6]} 10... Qe7 {[%clk 0:01:54.6]} 11. Qd2 {[%clk
0:02:37.5]} 11... Nf8 {[%clk 0:01:53]} 12. Bg5 {[%clk 0:02:33.8]} 12... Ne6
{[%clk 0:01:46.7]} 13. Bxf6 {[%clk 0:02:30]} 13... Qxf6 {[%clk 0:01:43.6]} 14.
d5 {[%clk 0:01:55.1]} 14... Nf4 {[%clk 0:01:42.5]} 15. Nh2 {[%clk 0:01:52.8]}
15... Qg5 {[%clk 0:01:41.2]} 16. Ng4 {[%clk 0:01:35.5]} 16... Nxh3+ {[%clk
0:01:39.9]} 0-1